fUSD/lending_fUSD_20240104
["ID","MTS","AMOUNT","RATE_DAILY","PERIOD"]
[310193278,1704395450741,-543.848,0.00033601,2]
[310193279,1704395450752,-737.331,0.00033601,2]
[310193280,1704395450762,-1234.0,0.00033601,2]
[310193281,1704395450772,-1261.0,0.00033601,2]
[310193282,1704395450782,-1102.343,0.00033601,2]
[310193283,1704395450792,-1926.0,0.00033601,2]
[310193284,1704395450803,-750.0,0.00033601,2]
[310193285,1704395450813,-238.535,0.00033601,2]
[310193286,1704395450823,-506.0,0.00033601,2]
[310193287,1704395450833,-426.741,0.00033601,2]
[310193288,1704395450844,-317.0,0.00033601,2]
[310193289,1704395450854,-371.268,0.00033601,2]
[310193290,1704395450865,-2870.808,0.00033601,2]
[310193291,1704395450874,-2588.627,0.00033601,2]
[310193292,1704395450887,-2985.392,0.00033601,2]
[310193293,1704395450898,-19638.0,0.00033601,2]
[310193294,1704395450909,-2916.381,0.00033601,2]
[310193295,1704395450920,-2264.0,0.00033601,2]
[310193296,1704395450930,-4185.0,0.00033601,2]
[310193297,1704395450940,-296.733,0.00033601,2]
[310193298,1704395450951,-693.67,0.0003366,2]
[310193299,1704395450961,-500.0,0.00033696,2]
[310193300,1704395450972,-500.0,0.00033696,2]
[310193301,1704395450982,-500.0,0.00033696,2]
[310193302,1704395450993,-175.91,0.00033696,2]
[310193303,1704395451003,-1000.0,0.00033696,2]
[310193304,1704395451013,-755.58,0.00033696,2]
[310193305,1704395451023,-1077.85,0.00033697,2]
[310193306,1704395451033,-500.0,0.00033697,2]
[310193307,1704395451043,-5801.51,0.00033697,2]
[310193308,1704395451053,-1092.64,0.00033697,2]
[310193309,1704395451063,-744.73,0.00033697,2]
[310193310,1704395451073,-1622.3,0.00033697,2]
[310193311,1704395451083,-2148.6,0.00033697,2]
[310193312,1704395451095,-1553.83,0.00033697,2]
[310193313,1704395451106,-1185.23,0.00033697,2]
[310193314,1704395451307,-500.0,0.00033697,2]
[310193315,1704395451326,-641.94,0.00033697,2]
[310193316,1704395451335,-500.0,0.00033697,2]
[310193317,1704395451346,-1138.12,0.00033697,2]
[310193318,1704395451355,-618.54,0.00033697,2]
[310193319,1704395451365,-3255.26,0.00033697,2]
[310193320,1704395451374,-758.96,0.00033697,2]
[310193321,1704395451383,-1309.54,0.00033697,2]
[310193322,1704395451392,-500.0,0.00033697,2]
[310193323,1704395451402,-500.0,0.00033697,2]
[310193324,1704395451411,-500.0,0.00033697,2]
[310193325,1704395451420,-500.0,0.00033697,2]
[310193326,1704395451431,-1855.81,0.00033697,2]
[310193327,1704395451441,-1078.37,0.00033697,2]
[310193328,1704395451450,-583.57,0.00033697,2]
[310193329,1704395451460,-500.0,0.00033697,2]
[310193330,1704395451470,-150.0,0.00033697,2]
[310193331,1704395451481,-977.53,0.00033697,2]
[310193332,1704395451491,-947.88,0.00033697,2]
[310193333,1704395451502,-1236.46,0.00033697,2]
[310193334,1704395451512,-500.0,0.00033698,2]
[310193335,1704395451522,-500.0,0.00033698,2]
[310193336,1704395451533,-500.0,0.00033698,2]
[310193337,1704395451544,-500.0,0.00033698,2]
[310193338,1704395451555,-500.0,0.00033698,2]
[310193339,1704395451566,-500.0,0.00033698,2]
[310193340,1704395451577,-500.0,0.00033698,2]
[310193341,1704395451588,-500.0,0.00033698,2]
[310193342,1704395451599,-500.0,0.00033698,2]
[310193343,1704395451610,-500.0,0.00033698,2]
[310193344,1704395451621,-500.0,0.00033698,2]
[310193345,1704395451631,-500.0,0.00033698,2]
[310193346,1704395451641,-500.0,0.00033698,2]
[310193347,1704395451651,-500.0,0.00033698,2]
[310193348,1704395451662,-500.0,0.00033698,2]
[310193349,1704395451674,-500.0,0.00033698,2]
[310193350,1704395451684,-500.0,0.00033698,2]
[310193351,1704395451694,-500.0,0.00033698,2]
[310193352,1704395451704,-500.0,0.00033698,2]
[310193353,1704395451714,-500.0,0.00033698,2]
[310193354,1704395451723,-500.0,0.00033698,2]
[310193355,1704395451733,-500.0,0.00033698,2]
[310193356,1704395451745,-500.0,0.00033698,2]
[310193357,1704395451757,-500.0,0.00033698,2]
[310193358,1704395451769,-500.0,0.00033698,2]
[310193359,1704395451779,-500.0,0.00033698,2]
[310193360,1704395451789,-500.0,0.00033698,2]
[310193361,1704395451800,-500.0,0.00033698,2]
[310193362,1704395451811,-500.0,0.00033698,2]
[310193363,1704395451823,-500.0,0.00033698,2]
[310193364,1704395451833,-382.60600167,0.00033698,2]
[310193365,1704395451844,-500.0,0.00033698,2]
[310193366,1704395451854,-500.0,0.00033698,2]
[310193367,1704395451865,-346.46644822,0.00033698,2]
[310193368,1704395451877,-500.0,0.00033698,2]
[310193369,1704395451888,-627.12728612,0.00033698,2]
[310193370,1704395451898,-500.0,0.00033698,2]
[310193371,1704395451909,-500.0,0.00033698,2]
[310193372,1704395451919,-500.0,0.00033698,2]
[310193373,1704395451929,-500.0,0.00033698,2]
[310193374,1704395451939,-500.0,0.00033698,2]
[310193375,1704395451949,-500.0,0.00033698,2]
[310193376,1704395451959,-500.0,0.00033698,2]
[310193377,1704395451969,-500.0,0.00033698,2]
[310193378,1704395451979,-500.0,0.00033698,2]
[310193379,1704395451989,-500.0,0.00033698,2]
[310193380,1704395451999,-500.0,0.00033698,2]
[310193381,1704395452009,-500.0,0.00033698,2]
[310193382,1704395452019,-308.32928976,0.00033698,2]
[310193383,1704395452030,-500.0,0.00033698,2]
[310193384,1704395452042,-500.0,0.00033698,2]
[310193385,1704395452053,-500.0,0.00033698,2]
[310193386,1704395452064,-500.0,0.00033698,2]
[310193387,1704395452073,-500.0,0.00033698,2]
[310193388,1704395452083,-500.0,0.00033698,2]
[310193389,1704395452094,-500.0,0.00033698,2]
[310193390,1704395452104,-500.0,0.00033698,2]
[310193391,1704395452113,-500.0,0.00033698,2]
[310193392,1704395452124,-500.0,0.00033698,2]
[310193393,1704395452134,-500.0,0.00033698,2]
[310193394,1704395452145,-239.65399604,0.00033698,2]
[310193395,1704395452157,-500.0,0.00033698,2]
[310193396,1704395452168,-500.0,0.00033698,2]
[310193397,1704395452178,-500.0,0.00033698,2]
[310193398,1704395452189,-254.13773276,0.00033698,2]
[310193399,1704395452199,-500.0,0.00033698,2]
[310193400,1704395452209,-500.0,0.00033698,2]
[310193401,1704395452219,-500.0,0.00033698,2]
[310193402,1704395452230,-500.0,0.00033698,2]
[310193403,1704395452241,-500.0,0.00033698,2]
[310193404,1704395452254,-500.0,0.00033698,2]
[310193405,1704395452267,-500.0,0.00033698,2]
[310193406,1704395452279,-611.47776443,0.00033698,2]
[310193407,1704395452291,-500.0,0.00033698,2]
[310193408,1704395452303,-500.0,0.00033698,2]
[310193409,1704395452315,-500.0,0.00033698,2]
[310193410,1704395452327,-499.99045932,0.00033698,2]
[310193411,1704395452339,-500.0,0.00033698,2]
[310193412,1704395452351,-500.0,0.00033698,2]
[310193413,1704395452363,-500.0,0.00033698,2]
[310193414,1704395452373,-500.0,0.00033698,2]
[310193415,1704395452385,-500.0,0.00033698,2]
[310193416,1704395452396,-500.0,0.00033698,2]
[310193417,1704395452406,-500.0,0.00033698,2]
[310193418,1704395452416,-500.0,0.00033698,2]
[310193419,1704395452425,-500.0,0.00033698,2]
[310193420,1704395452434,-500.0,0.00033698,2]
[310193421,1704395452444,-500.0,0.00033698,2]
[310193422,1704395452454,-500.0,0.00033698,2]
[310193423,1704395452464,-500.0,0.00033698,2]
[310193424,1704395452474,-500.0,0.00033698,2]
[310193425,1704395452485,-500.0,0.00033698,2]
[310193426,1704395452494,-500.0,0.00033698,2]
[310193427,1704395452505,-500.0,0.00033698,2]
[310193428,1704395452515,-500.0,0.00033698,2]
[310193429,1704395452525,-514.58,0.00033698,2]
[310193430,1704395452534,-500.0,0.00033698,2]
[310193431,1704395452543,-500.0,0.00033698,2]
[310193432,1704395452552,-500.0,0.00033698,2]
[310193433,1704395452562,-500.0,0.00033698,2]
[310193434,1704395452572,-500.0,0.00033698,2]
[310193435,1704395452582,-500.0,0.00033698,2]
[310193436,1704395452593,-500.0,0.00033698,2]
[310193437,1704395452604,-500.0,0.00033698,2]
[310193438,1704395452614,-500.0,0.00033698,2]
[310193439,1704395452623,-500.0,0.00033698,2]
[310193440,1704395452634,-500.0,0.00033698,2]
[310193441,1704395452645,-500.0,0.00033698,2]
[310193442,1704395452655,-500.0,0.00033698,2]
[310193443,1704395452666,-448.9523617,0.00033698,2]
[310193444,1704395452676,-500.0,0.00033698,2]
[310193445,1704395452686,-500.0,0.00033698,2]
[310193446,1704395452697,-500.0,0.00033698,2]
[310193447,1704395452707,-500.0,0.00033698,2]
[310193448,1704395452719,-770.93,0.00033698,2]
[310193449,1704395452730,-505.78,0.00033698,2]
[310193450,1704395452740,-500.0,0.00033698,2]
[310193451,1704395452750,-500.0,0.00033698,2]
[310193452,1704395452763,-2733.2,0.00033698,2]
[310193453,1704395452774,-500.0,0.00033698,2]
[310193454,1704395452784,-500.0,0.00033698,2]
[310193455,1704395452795,-3482.8,0.00033698,2]
[310193456,1704395452804,-500.0,0.00033698,2]
[310193457,1704395452814,-500.0,0.00033698,2]
[310193458,1704395452825,-500.0,0.00033698,2]
[310193459,1704395452835,-500.0,0.00033698,2]
[310193460,1704395452846,-732.17,0.00033698,2]
[310193461,1704395452856,-1091.05,0.00033698,2]
[310193462,1704395452866,-2114.16,0.00033698,2]
[310193463,1704395452876,-577.34,0.00033698,2]
[310193464,1704395452886,-500.0,0.00033698,2]
[310193465,1704395452897,-500.0,0.00033698,2]
[310193466,1704395452909,-2557.25,0.00033698,2]
[310193467,1704395452919,-500.0,0.00033698,2]
[310193468,1704395452930,-532.08,0.00033698,2]
[310193469,1704395452941,-1336.54,0.00033698,2]
[310193470,1704395452951,-500.0,0.00033698,2]
[310193471,1704395452963,-2652.71,0.00033698,2]
[310193472,1704395452973,-500.0,0.00033698,2]
[310193473,1704395452983,-1082.21,0.00033698,2]
[310193474,1704395452993,-570.57,0.00033698,2]
[310193475,1704395453003,-923.41,0.00033698,2]
[310193476,1704395453014,-500.0,0.00033698,2]
[310193477,1704395453024,-2276.52,0.00033698,2]
[310193478,1704395453034,-500.0,0.00033698,2]
[310193479,1704395453044,-500.0,0.00033698,2]
[310193480,1704395453054,-686.69,0.00033698,2]
[310193481,1704395453063,-7321.98,0.00033698,2]
[310193482,1704395453074,-500.0,0.00033698,2]
[310193483,1704395453084,-1727.58,0.00033698,2]
[310193484,1704395453094,-500.0,0.00033698,2]
[310193485,1704395453107,-2271.65,0.00033698,2]
[310193486,1704395453117,-733.14,0.00033698,2]
[310193487,1704395453129,-500.0,0.00033698,2]
[310193488,1704395453140,-500.0,0.00033698,2]
[310193489,1704395453149,-2282.92,0.00033698,2]
[310193490,1704395453160,-500.0,0.00033698,2]
[310193491,1704395453172,-1413.73,0.00033698,2]
[310193492,1704395453183,-1947.79,0.00033698,2]
[310193493,1704395453194,-567.92,0.00033698,2]
[310193494,1704395453204,-500.0,0.00033698,2]
[310193495,1704395453214,-500.0,0.00033698,2]
[310193496,1704395453224,-4180.43,0.00033698,2]
[310193497,1704395453234,-527.44,0.00033698,2]
[310193498,1704395453243,-500.0,0.00033698,2]
[310193499,1704395453252,-1287.29,0.00033698,2]
[310193500,1704395453262,-649.63,0.00033698,2]
[310193501,1704395453271,-673.21,0.00033698,2]
[310193502,1704395453282,-500.0,0.00033698,2]
[310193503,1704395453293,-500.0,0.00033698,2]
[310193504,1704395453304,-500.0,0.00033698,2]
[310193505,1704395453314,-500.0,0.00033698,2]
[310193506,1704395453324,-760.73,0.00033698,2]
[310193507,1704395453334,-500.0,0.00033698,2]
[310193508,1704395453345,-500.0,0.00033698,2]
[310193509,1704395453357,-1131.3,0.00033698,2]
[310193510,1704395453366,-500.0,0.00033698,2]
[310193511,1704395453375,-500.0,0.00033698,2]
[310193512,1704395453384,-500.0,0.00033698,2]
[310193513,1704395453393,-1301.5,0.00033698,2]
[310193514,1704395453402,-500.0,0.00033698,2]
[310193515,1704395453411,-966.93,0.00033698,2]
[310193516,1704395453420,-767.71,0.00033698,2]
[310193517,1704395453429,-2224.59,0.00033698,2]
[310193518,1704395453438,-601.14,0.00033698,2]
[310193519,1704395453446,-996.88,0.00033698,2]
[310193520,1704395453455,-500.0,0.00033698,2]
[310193521,1704395453464,-1166.75,0.00033698,2]
[310193522,1704395453474,-5336.54,0.00033698,2]
[310193523,1704395453483,-792.9,0.00033698,2]
[310193524,1704395453491,-1019.44,0.00033698,2]
[310193525,1704395453500,-500.0,0.00033698,2]
[310193526,1704395453509,-500.0,0.00033698,2]
[310193527,1704395453518,-561.14,0.00033698,2]
[310193528,1704395453527,-804.87,0.00033698,2]
[310193529,1704395453537,-6607.68,0.00033698,2]
[310193530,1704395453545,-2923.77,0.00033698,2]
[310193531,1704395453554,-513.7,0.00033698,2]
[310193532,1704395453563,-1870.97,0.00033698,2]
[310193533,1704395453572,-587.68,0.00033698,2]
[310193534,1704395453581,-500.0,0.00033698,2]
[310193535,1704395453590,-1728.16,0.00033698,2]
[310193536,1704395453600,-500.0,0.00033698,2]
[310193537,1704395453609,-708.91,0.00033698,2]
[310193538,1704395453619,-3044.41,0.00033698,2]
[310193539,1704395453628,-500.0,0.00033698,2]
[310193540,1704395453636,-500.0,0.00033698,2]
[310193541,1704395453649,-500.0,0.00033698,2]
[310193542,1704395453662,-500.0,0.00033698,2]
[310193543,1704395453680,-500.0,0.00033698,2]
[310193544,1704395453693,-1250.57,0.00033698,2]
[310193545,1704395453705,-500.0,0.00033698,2]
[310193546,1704395453716,-669.26,0.00033698,2]
[310193547,1704395453726,-500.0,0.00033698,2]
[310193548,1704395453738,-500.0,0.00033698,2]
[310193549,1704395453751,-500.0,0.00033698,2]
[310193550,1704395453763,-500.0,0.00033698,2]
[310193551,1704395453776,-602.81,0.00033698,2]
[310193552,1704395453788,-500.0,0.00033698,2]
[310193553,1704395453800,-500.0,0.00033698,2]
[310193554,1704395453812,-640.2,0.00033698,2]
[310193555,1704395453822,-725.02,0.00033698,2]
[310193556,1704395453834,-500.0,0.00033698,2]
[310193557,1704395453847,-4976.48,0.00033698,2]
[310193558,1704395453859,-758.41,0.00033698,2]
[310193559,1704395453871,-1594.66,0.00033698,2]
[310193560,1704395453882,-2205.19,0.00033698,2]
[310193561,1704395453894,-500.0,0.00033698,2]
[310193562,1704395453907,-1107.35,0.00033698,2]
[310193563,1704395453918,-560.12,0.00033698,2]
[310193564,1704395453928,-596.68,0.00033698,2]
[310193565,1704395453938,-1681.09,0.00033698,2]
[310193566,1704395453952,-1016.91,0.00033698,2]
[310193567,1704395453964,-500.0,0.00033698,2]
[310193568,1704395453975,-755.51,0.00033698,2]
[310193569,1704395453988,-500.0,0.00033698,2]
[310193570,1704395453999,-500.0,0.00033698,2]
[310193571,1704395454010,-657.82,0.00033698,2]
[310193572,1704395454021,-1231.31,0.00033698,2]
[310193573,1704395454034,-536.35,0.00033698,2]
[310193574,1704395454046,-500.0,0.00033698,2]
[310193575,1704395454059,-532.91,0.00033698,2]
[310193576,1704395454073,-500.0,0.00033698,2]
[310193577,1704395454085,-500.0,0.00033698,2]
[310193578,1704395454097,-1247.12,0.00033698,2]
[310193579,1704395454109,-500.0,0.00033698,2]
[310193580,1704395454119,-500.0,0.00033698,2]
[310193581,1704395454130,-500.0,0.00033698,2]
[310193582,1704395454139,-508.73,0.00033698,2]
[310193583,1704395454150,-500.0,0.00033698,2]
[310193584,1704395454162,-1676.15,0.00033698,2]
[310193585,1704395454174,-500.0,0.00033698,2]
[310193586,1704395454185,-500.0,0.00033698,2]
[310193587,1704395454198,-500.0,0.00033698,2]
[310193588,1704395454210,-1319.57,0.00033698,2]
[310193589,1704395454222,-1836.52,0.00033698,2]
[310193590,1704395454234,-500.0,0.00033698,2]
[310193591,1704395454244,-500.0,0.00033698,2]
[310193592,1704395454256,-805.67,0.00033698,2]
[310193593,1704395454268,-1680.66,0.00033698,2]
[310193594,1704395454278,-150.0,0.00033699,2]
[310193595,1704395454290,-293.32,0.00033699,2]
[310193596,1704395454301,-1000.0,0.000337,2]
[310193597,1704395454312,-1000.0,0.000337,7]
[310193598,1704395454322,-728.14261917,0.00033758,2]
[310193599,1704395454335,-958.19,0.00033766,2]
[310193600,1704395454347,-154.04,0.00033833,2]
[310193601,1704395454358,-9882.69114052,0.000339,2]
[310193602,1704395454368,-569.33123808,0.000339,2]
[310193603,1704395454379,-164.37223079,0.000339,2]
[310193604,1704395454390,-376.07259199,0.000339,2]
[310193605,1704395454400,-526.15794412,0.0003395,6]
[310193606,1704395454412,-500.0,0.00033971,2]
[310193607,1704395454423,-500.0,0.00033971,2]
[310193608,1704395454434,-500.0,0.00033971,2]
[310193609,1704395454444,-1077.85,0.00033971,2]
[310193610,1704395454455,-500.0,0.00033971,2]
[310193611,1704395454466,-5801.51,0.00033971,2]
[310193612,1704395454476,-1092.64,0.00033971,2]
[310193613,1704395454487,-744.73,0.00033971,2]
[310193614,1704395454498,-1622.3,0.00033971,2]
[310193615,1704395454508,-2148.6,0.00033971,2]
[310193616,1704395454518,-1553.83,0.00033971,2]
[310193617,1704395454529,-1185.23,0.00033971,2]
[310193618,1704395454539,-500.0,0.00033971,2]
[310193619,1704395454550,-641.94,0.00033971,2]
[310193620,1704395454561,-500.0,0.00033971,2]
[310193621,1704395454573,-1000.0,0.00033971,2]
[310193622,1704395454583,-1138.12,0.00033971,2]
[310193623,1704395454594,-618.54,0.00033971,2]
[310193624,1704395454606,-3255.26,0.00033971,2]
[310193625,1704395454617,-758.96,0.00033971,2]
[310193626,1704395454629,-1309.54,0.00033971,2]
[310193627,1704395454641,-500.0,0.00033971,2]
[310193628,1704395454653,-500.0,0.00033971,2]
[310193629,1704395454664,-500.0,0.00033971,2]
[310193630,1704395454676,-500.0,0.00033971,2]
[310193631,1704395454687,-1855.81,0.00033971,2]
[310193632,1704395454701,-1078.37,0.00033971,2]
[310193633,1704395454712,-583.57,0.00033971,2]
[310193634,1704395454723,-500.0,0.00033971,2]
[310193635,1704395454733,-977.53,0.00033971,2]
[310193636,1704395454743,-947.88,0.00033971,2]
[310193637,1704395454753,-755.58,0.00033971,2]
[310193638,1704395454764,-1236.46,0.00033971,2]
[310193639,1704395454775,-598.11248719,0.00033972,2]
[310193640,1704395454786,-500.0,0.00033972,2]
[310193641,1704395454798,-500.0,0.00033972,2]
[310193642,1704395454810,-500.0,0.00033972,2]
[310193643,1704395454821,-500.0,0.00033972,2]
[310193644,1704395454832,-500.0,0.00033972,2]
[310193645,1704395454843,-500.0,0.00033972,2]
[310193646,1704395454854,-500.0,0.00033972,2]
[310193647,1704395454865,-500.0,0.00033972,2]
[310193648,1704395454876,-500.0,0.00033972,2]
[310193649,1704395454887,-500.0,0.00033972,2]
[310193650,1704395454898,-180.75351071,0.00033972,2]
[310193651,1704395454909,-500.0,0.00033972,2]
[310193652,1704395454922,-500.0,0.00033972,2]
[310193653,1704395454933,-500.0,0.00033972,2]
[310193654,1704395454946,-500.0,0.00033972,2]
[310193655,1704395454958,-500.0,0.00033972,2]
[310193656,1704395454969,-500.0,0.00033972,2]
[310193657,1704395454982,-384.83367125,0.00033972,2]
[310193658,1704395454992,-500.0,0.00033972,2]
[310193659,1704395455005,-500.0,0.00033972,2]
[310193660,1704395455015,-500.0,0.00033972,2]
[310193661,1704395455028,-500.0,0.00033972,2]
[310193662,1704395455038,-500.0,0.00033972,2]
[310193663,1704395455050,-500.0,0.00033972,2]
[310193664,1704395455063,-500.0,0.00033972,2]
[310193665,1704395455074,-500.0,0.00033972,2]
[310193666,1704395455085,-500.0,0.00033972,2]
[310193667,1704395455096,-500.0,0.00033972,2]
[310193668,1704395455107,-500.0,0.00033972,2]
[310193669,1704395455118,-500.0,0.00033972,2]
[310193670,1704395455129,-500.0,0.00033972,2]
[310193671,1704395455140,-500.0,0.00033972,2]
[310193672,1704395455151,-500.0,0.00033972,2]
[310193673,1704395455161,-500.0,0.00033972,2]
[310193674,1704395455174,-500.0,0.00033972,2]
[310193675,1704395455185,-500.0,0.00033972,2]
[310193676,1704395455195,-532.06835821,0.00033972,2]
[310193677,1704395455207,-500.0,0.00033972,2]
[310193678,1704395455219,-500.0,0.00033972,2]
[310193679,1704395455231,-500.0,0.00033972,2]
[310193680,1704395455243,-500.0,0.00033972,2]
[310193681,1704395455257,-500.0,0.00033972,2]
[310193682,1704395455267,-500.0,0.00033972,2]
[310193683,1704395455279,-500.0,0.00033972,2]
[310193684,1704395455291,-500.0,0.00033972,2]
[310193685,1704395455302,-542.22,0.00033972,2]
[310193686,1704395455313,-500.0,0.00033972,2]
[310193687,1704395455325,-500.0,0.00033972,2]
[310193688,1704395455337,-500.0,0.00033972,2]
[310193689,1704395455348,-189.79782467,0.00033972,2]
[310193690,1704395455358,-500.0,0.00033972,2]
[310193691,1704395455369,-500.0,0.00033972,2]
[310193692,1704395455379,-500.0,0.00033972,2]
[310193693,1704395455390,-223.9368569,0.00033972,2]
[310193694,1704395455401,-171.12586226,0.00033972,2]
[310193695,1704395455412,-500.0,0.00033972,2]
[310193696,1704395455423,-519.63653964,0.00033972,2]
[310193697,1704395455436,-500.0,0.00033972,2]
[310193698,1704395455448,-500.0,0.00033972,2]
[310193699,1704395455460,-500.0,0.00033972,2]
[310193700,1704395455472,-500.0,0.00033972,2]
[310193701,1704395455482,-595.24213465,0.00033972,2]
[310193702,1704395455494,-500.0,0.00033972,2]
[310193703,1704395455506,-500.0,0.00033972,2]
[310193704,1704395455516,-500.0,0.00033972,2]
[310193705,1704395455527,-500.0,0.00033972,2]
[310193706,1704395455538,-500.0,0.00033972,2]
[310193707,1704395455549,-500.0,0.00033972,2]
[310193708,1704395455560,-500.0,0.00033972,2]
[310193709,1704395455571,-500.0,0.00033972,2]
[310193710,1704395455583,-500.0,0.00033972,2]
[310193711,1704395455593,-500.0,0.00033972,2]
[310193712,1704395455605,-500.0,0.00033972,2]
[310193713,1704395455615,-500.0,0.00033972,2]
[310193714,1704395455626,-500.0,0.00033972,2]
[310193715,1704395455638,-500.0,0.00033972,2]
[310193716,1704395455649,-500.0,0.00033972,2]
[310193717,1704395455660,-500.0,0.00033972,2]
[310193718,1704395455672,-514.58,0.00033972,2]
[310193719,1704395455682,-500.0,0.00033972,2]
[310193720,1704395455693,-500.0,0.00033972,2]
[310193721,1704395455704,-500.0,0.00033972,2]
[310193722,1704395455715,-500.0,0.00033972,2]
[310193723,1704395455726,-500.0,0.00033972,2]
[310193724,1704395455737,-500.0,0.00033972,2]
[310193725,1704395455748,-500.0,0.00033972,2]
[310193726,1704395455758,-500.0,0.00033972,2]
[310193727,1704395455769,-500.0,0.00033972,2]
[310193728,1704395455779,-500.0,0.00033972,2]
[310193729,1704395455790,-500.0,0.00033972,2]
[310193730,1704395455803,-553.44687478,0.00033972,2]
[310193731,1704395455813,-500.0,0.00033972,2]
[310193732,1704395455824,-529.26252452,0.00033972,2]
[310193733,1704395455836,-770.93,0.00033972,2]
[310193734,1704395455847,-505.78,0.00033972,2]
[310193735,1704395455857,-500.0,0.00033972,2]
[310193736,1704395455868,-2733.2,0.00033972,2]
[310193737,1704395455879,-500.0,0.00033972,2]
[310193738,1704395455889,-500.0,0.00033972,2]
[310193739,1704395455900,-3482.8,0.00033972,2]
[310193740,1704395455911,-500.0,0.00033972,2]
[310193741,1704395455922,-500.0,0.00033972,2]
[310193742,1704395455932,-500.0,0.00033972,2]
[310193743,1704395455943,-500.0,0.00033972,2]
[310193744,1704395455954,-732.17,0.00033972,2]
[310193745,1704395455965,-1091.05,0.00033972,2]
[310193746,1704395455976,-2114.16,0.00033972,2]
[310193747,1704395455986,-577.34,0.00033972,2]
[310193748,1704395455998,-500.0,0.00033972,2]
[310193749,1704395456008,-500.0,0.00033972,2]
[310193750,1704395456020,-2557.25,0.00033972,2]
[310193751,1704395456030,-500.0,0.00033972,2]
[310193752,1704395456041,-532.08,0.00033972,2]
[310193753,1704395456052,-1336.54,0.00033972,2]
[310193754,1704395456063,-500.0,0.00033972,2]
[310193755,1704395456074,-2652.71,0.00033972,2]
[310193756,1704395456085,-500.0,0.00033972,2]
[310193757,1704395456096,-1082.21,0.00033972,2]
[310193758,1704395456107,-570.57,0.00033972,2]
[310193759,1704395456118,-923.41,0.00033972,2]
[310193760,1704395456130,-500.0,0.00033972,2]
[310193761,1704395456140,-2276.52,0.00033972,2]
[310193762,1704395456152,-500.0,0.00033972,2]
[310193763,1704395456163,-500.0,0.00033972,2]
[310193764,1704395456472,-686.69,0.00033972,2]
[310193765,1704395456498,-7321.98,0.00033972,2]
[310193766,1704395456518,-500.0,0.00033972,2]
[310193767,1704395456531,-1727.58,0.00033972,2]
[310193768,1704395456540,-500.0,0.00033972,2]
[310193769,1704395456549,-2271.65,0.00033972,2]
[310193770,1704395456558,-733.14,0.00033972,2]
[310193771,1704395456567,-500.0,0.00033972,2]
[310193772,1704395456576,-500.0,0.00033972,2]
[310193773,1704395456585,-2282.92,0.00033972,2]
[310193774,1704395456594,-500.0,0.00033972,2]
[310193775,1704395456604,-1413.73,0.00033972,2]
[310193776,1704395456614,-1947.79,0.00033972,2]
[310193777,1704395456623,-567.92,0.00033972,2]